[Event "Titled Tuesday Blitz April 12 Late 2022"]
[White "Fedoseev, Vladimir"]
[Black "Xu, Yi"]
[WhiteFideId "24130737"]
[BlackFideId "8605564"]
[WhiteElo "2726"]
[BlackElo "2471"]
[Result "1-0"]
[Round "05"]
[TimeControl "180+1"]
[Date "2022.04.12"]
[WhiteClock "0:00:02"]
[BlackClock "0:00:02"]

1. g3 {[%clk 0:02:24]}  Nf6 {[%clk 0:02:58]} 2. Bg2 {[%clk 0:02:24]}  d5 {[%clk 0:02:59]} 3. Nf3 {[%clk 0:02:23]}  e6 {[%clk 0:02:59]} 4. O-O {[%clk 0:02:23]}  Be7 {[%clk 0:03:00]} 5. c4 {[%clk 0:02:22]}  O-O {[%clk 0:03:00]} 6. b3 {[%clk 0:02:23]}  d4 {[%clk 0:02:56]} 7. e3 {[%clk 0:02:20]}  c5 {[%clk 0:02:56]} 8. Ne5 {[%clk 0:02:19]}  Qc7 {[%clk 0:02:51]} 9. f4 {[%clk 0:02:19]}  Nfd7 {[%clk 0:02:47]} 10. Nd3 {[%clk 0:02:18]}  Nc6 {[%clk 0:02:45]} 11. Na3 {[%clk 0:02:14]}  a6 {[%clk 0:02:30]} 12. Nc2 {[%clk 0:02:13]}  Bf6 {[%clk 0:02:29]} 13. e4 {[%clk 0:02:08]}  e5 {[%clk 0:02:28]} 14. f5 {[%clk 0:02:05]}  b5 {[%clk 0:02:21]} 15. Nf2 {[%clk 0:02:05]}  bxc4 {[%clk 0:02:15]} 16. bxc4 {[%clk 0:02:06]}  Be7 {[%clk 0:02:02]} 17. d3 {[%clk 0:02:06]}  Rb8 {[%clk 0:01:56]} 18. g4 {[%clk 0:02:05]}  h6 {[%clk 0:01:48]} 19. Ne1 {[%clk 0:02:03]}  f6 {[%clk 0:01:39]} 20. h4 {[%clk 0:02:02]}  Nd8 {[%clk 0:01:38]} 21. Nf3 {[%clk 0:01:57]}  Nf7 {[%clk 0:01:38]} 22. Bd2 {[%clk 0:01:57]}  Bb7 {[%clk 0:01:34]} 23. Qc1 {[%clk 0:01:56]}  Qd8 {[%clk 0:01:33]} 24. Nh1 {[%clk 0:01:54]}  Bc6 {[%clk 0:01:31]} 25. Ng3 {[%clk 0:01:54]}  Re8 {[%clk 0:01:28]} 26. Nh5 {[%clk 0:01:54]}  Nf8 {[%clk 0:01:25]} 27. Qa3 {[%clk 0:01:47]}  Nh7 {[%clk 0:01:15]} 28. Qxa6 {[%clk 0:01:45]}  Qc7 {[%clk 0:01:15]} 29. Qa3 {[%clk 0:01:43]}  Ra8 {[%clk 0:01:14]} 30. Qc1 {[%clk 0:01:43]}  Reb8 {[%clk 0:01:14]} 31. Kh2 {[%clk 0:01:35]}  Be8 {[%clk 0:01:07]} 32. Rf2 {[%clk 0:01:29]}  Qb6 {[%clk 0:01:05]} 33. Be1 {[%clk 0:01:26]}  Qa6 {[%clk 0:01:03]} 34. a4 {[%clk 0:01:14]}  Rb3 {[%clk 0:00:47]} 35. Qd1 {[%clk 0:01:10]}  Rab8 {[%clk 0:00:43]} 36. a5 {[%clk 0:01:10]}  Nd6 {[%clk 0:00:39]} 37. Ng3 {[%clk 0:01:08]}  Bf7 {[%clk 0:00:38]} 38. Bf1 {[%clk 0:01:03]}  Rb2 {[%clk 0:00:35]} 39. Kg1 {[%clk 0:01:02]}  Rxf2 {[%clk 0:00:32]} 40. Bxf2 {[%clk 0:01:01]}  Nc8 {[%clk 0:00:27]} 41. Be1 {[%clk 0:00:59]}  Na7 {[%clk 0:00:27]} 42. Rb1 {[%clk 0:00:59]}  Rb7 {[%clk 0:00:24]} 43. Rxb7 {[%clk 0:00:56]}  Qxb7 {[%clk 0:00:24]} 44. Qa4 {[%clk 0:00:56]}  Nf8 {[%clk 0:00:20]} 45. Nd2 {[%clk 0:00:50]}  Qb8 {[%clk 0:00:19]} 46. Nb3 {[%clk 0:00:47]}  Be8 {[%clk 0:00:20]} 47. Qa3 {[%clk 0:00:47]}  Qc7 {[%clk 0:00:20]} 48. Be2 {[%clk 0:00:45]}  Nd7 {[%clk 0:00:19]} 49. Bd2 {[%clk 0:00:45]}  Nb8 {[%clk 0:00:19]} 50. Bc1 {[%clk 0:00:35]}  Na6 {[%clk 0:00:19]} 51. Nd2 {[%clk 0:00:35]}  Nb4 {[%clk 0:00:19]} 52. Nf3 {[%clk 0:00:34]}  Nac6 {[%clk 0:00:19]} 53. g5 {[%clk 0:00:27]}  hxg5 {[%clk 0:00:18]} 54. hxg5 {[%clk 0:00:27]}  Qxa5 {[%clk 0:00:18]} 55. g6 {[%clk 0:00:20]}  Qxa3 {[%clk 0:00:16]} 56. Bxa3 {[%clk 0:00:21]}  Nc2 {[%clk 0:00:13]} 57. Bc1 {[%clk 0:00:21]}  Bd7 {[%clk 0:00:12]} 58. Kf2 {[%clk 0:00:19]}  N2b4 {[%clk 0:00:11]} 59. Ne1 {[%clk 0:00:18]}  Na5 {[%clk 0:00:11]} 60. Bd1 {[%clk 0:00:15]}  Bc6 {[%clk 0:00:08]} 61. Bd2 {[%clk 0:00:15]}  Bd6 {[%clk 0:00:08]} 62. Ke2 {[%clk 0:00:15]}  Be7 {[%clk 0:00:08]} 63. Nh5 {[%clk 0:00:14]}  Bd6 {[%clk 0:00:08]} 64. Nf3 {[%clk 0:00:14]}  Be7 {[%clk 0:00:08]} 65. Nh2 {[%clk 0:00:14]}  Kf8 {[%clk 0:00:06]} 66. Ng4 {[%clk 0:00:15]}  Nxc4 {[%clk 0:00:04]} 67. dxc4 {[%clk 0:00:13]}  Bxe4 {[%clk 0:00:04]} 68. Ng3 {[%clk 0:00:13]}  Bd3+ {[%clk 0:00:05]} 69. Ke1 {[%clk 0:00:12]}  Bxc4 {[%clk 0:00:05]} 70. Bf3 {[%clk 0:00:10]}  Bd3 {[%clk 0:00:05]} 71. Be4 {[%clk 0:00:09]}  c4 {[%clk 0:00:05]} 72. Bxb4 {[%clk 0:00:05]}  Bxb4+ {[%clk 0:00:05]} 73. Kd1 {[%clk 0:00:05]}  Bxe4 {[%clk 0:00:04]} 74. Nxe4 {[%clk 0:00:05]}  Be7 {[%clk 0:00:03]} 75. Kc2 {[%clk 0:00:05]}  Bb4 {[%clk 0:00:03]} 76. Ngf2 {[%clk 0:00:04]}  d3+ {[%clk 0:00:03]} 77. Kb2 {[%clk 0:00:04]}  Ke7 {[%clk 0:00:03]} 78. Ng4 {[%clk 0:00:04]}  Kf8 {[%clk 0:00:03]} 79. Ne3 {[%clk 0:00:04]}  d2 {[%clk 0:00:02]} 80. Kc2 {[%clk 0:00:03]}  c3 {[%clk 0:00:02]} 81. Nd5 {[%clk 0:00:03]}  Ba5 {[%clk 0:00:01]} 82. Ndxc3 {[%clk 0:00:03]}  Ke7 {[%clk 0:00:02]} 83. Nd5+ {[%clk 0:00:03]}  Kd7 {[%clk 0:00:02]} 84. Ndxf6+ {[%clk 0:00:02]}  gxf6 {[%clk 0:00:02]} 85. g7 {[%clk 0:00:02]} 1-0


[Site "https://www.chess.com"]

[Event "Titled Tuesday Blitz April 12 Late 2022"]
[White "Fernandez Siles, Luis"]
[Black "Sochacki, Christophe"]
[WhiteFideId "2209420"]
[BlackFideId "662569"]
[WhiteElo "2212"]
[BlackElo "2480"]
[Result "0-1"]
[Round "05"]
[TimeControl "180+1"]
[Date "2022.04.12"]
[WhiteClock "0:00:03"]
[BlackClock "0:00:15"]

1. e4 {[%clk 0:03:00]}  e6 {[%clk 0:02:56]} 2. d4 {[%clk 0:02:57]}  d5 {[%clk 0:02:54]} 3. Nd2 {[%clk 0:02:56]}  e5 {[%clk 0:02:52]} 4. c3 {[%clk 0:02:43]}  exd4 {[%clk 0:02:48]} 5. cxd4 {[%clk 0:02:43]}  dxe4 {[%clk 0:02:36]} 6. Nxe4 {[%clk 0:02:43]}  Nf6 {[%clk 0:02:36]} 7. Nc3 {[%clk 0:02:43]}  Bd6 {[%clk 0:02:30]} 8. Bc4 {[%clk 0:02:40]}  O-O {[%clk 0:02:29]} 9. Nge2 {[%clk 0:02:37]}  Re8 {[%clk 0:02:25]} 10. Bg5 {[%clk 0:02:35]}  h6 {[%clk 0:02:22]} 11. Bh4 {[%clk 0:02:34]}  Nc6 {[%clk 0:02:16]} 12. a3 {[%clk 0:02:26]}  Bg4 {[%clk 0:02:10]} 13. f3 {[%clk 0:02:18]}  Bf5 {[%clk 0:02:05]} 14. O-O {[%clk 0:02:11]}  Be7 {[%clk 0:02:06]} 15. Bg3 {[%clk 0:02:03]}  Qd7 {[%clk 0:01:52]} 16. d5 {[%clk 0:01:45]}  Bc5+ {[%clk 0:01:44]} 17. Kh1 {[%clk 0:01:45]}  Ne5 {[%clk 0:01:35]} 18. Bb5 {[%clk 0:01:02]}  c6 {[%clk 0:01:31]} 19. dxc6 {[%clk 0:00:54]}  bxc6 {[%clk 0:01:28]} 20. Bxe5 {[%clk 0:00:46]}  Rxe5 {[%clk 0:01:24]} 21. Qxd7 {[%clk 0:00:42]}  Bxd7 {[%clk 0:01:22]} 22. Ba4 {[%clk 0:00:32]}  Rae8 {[%clk 0:01:18]} 23. Ng3 {[%clk 0:00:30]}  Bb6 {[%clk 0:00:52]} 24. Rad1 {[%clk 0:00:29]}  R8e7 {[%clk 0:00:45]} 25. Nge4 {[%clk 0:00:29]}  Nd5 {[%clk 0:00:42]} 26. Nxd5 {[%clk 0:00:18]}  cxd5 {[%clk 0:00:43]} 27. Bxd7 {[%clk 0:00:17]}  dxe4 {[%clk 0:00:42]} 28. fxe4 {[%clk 0:00:12]}  Rxe4 {[%clk 0:00:40]} 29. Bb5 {[%clk 0:00:12]}  Rd4 {[%clk 0:00:31]} 30. Rxd4 {[%clk 0:00:11]}  Bxd4 {[%clk 0:00:31]} 31. Bc4 {[%clk 0:00:11]}  Bxb2 {[%clk 0:00:31]} 32. a4 {[%clk 0:00:12]}  a5 {[%clk 0:00:28]} 33. g3 {[%clk 0:00:10]}  g6 {[%clk 0:00:26]} 34. Rf2 {[%clk 0:00:08]}  Bd4 {[%clk 0:00:24]} 35. Re2 {[%clk 0:00:09]}  Rc7 {[%clk 0:00:23]} 36. Bb5 {[%clk 0:00:09]}  Kg7 {[%clk 0:00:22]} 37. Kg2 {[%clk 0:00:10]}  f5 {[%clk 0:00:18]} 38. Kf3 {[%clk 0:00:10]}  Kf6 {[%clk 0:00:17]} 39. h3 {[%clk 0:00:10]}  Rc3+ {[%clk 0:00:17]} 40. Kg2 {[%clk 0:00:09]}  Be5 {[%clk 0:00:18]} 41. g4 {[%clk 0:00:03]}  Rg3+ {[%clk 0:00:15]} 0-1


[Site "https://www.chess.com"]

[Event "Titled Tuesday Blitz April 12 Late 2022"]
[White "Foisor, Sabina-Francesca"]
[Black "Ozates, Tuna"]
[WhiteFideId "1212915"]
[BlackFideId "6354521"]
[WhiteElo "2243"]
[BlackElo "1887"]
[Result "0-1"]
[Round "05"]
[TimeControl "180+1"]
[Date "2022.04.13"]
[WhiteClock "0:00:06"]
[BlackClock "0:00:59"]

1. d4 {[%clk 0:03:00]}  Nf6 {[%clk 0:02:59]} 2. c4 {[%clk 0:03:00]}  g6 {[%clk 0:02:58]} 3. Nf3 {[%clk 0:02:59]}  Bg7 {[%clk 0:02:57]} 4. g3 {[%clk 0:02:59]}  O-O {[%clk 0:02:58]} 5. Bg2 {[%clk 0:02:56]}  Nc6 {[%clk 0:02:59]} 6. O-O {[%clk 0:02:53]}  d6 {[%clk 0:02:57]} 7. Nc3 {[%clk 0:02:43]}  a6 {[%clk 0:02:57]} 8. Bg5 {[%clk 0:02:08]}  Rb8 {[%clk 0:02:54]} 9. Rc1 {[%clk 0:02:04]}  Bd7 {[%clk 0:02:41]} 10. b3 {[%clk 0:02:00]}  b5 {[%clk 0:02:39]} 11. c5 {[%clk 0:01:48]}  b4 {[%clk 0:02:32]} 12. Na4 {[%clk 0:01:41]}  Ne4 {[%clk 0:02:29]} 13. Be3 {[%clk 0:01:38]}  d5 {[%clk 0:02:27]} 14. Qd3 {[%clk 0:01:24]}  Qc8 {[%clk 0:02:17]} 15. Nd2 {[%clk 0:01:19]}  f5 {[%clk 0:02:16]} 16. f3 {[%clk 0:01:15]}  Nf6 {[%clk 0:02:08]} 17. Bf2 {[%clk 0:01:08]}  e5 {[%clk 0:02:07]} 18. dxe5 {[%clk 0:00:53]}  Nxe5 {[%clk 0:02:06]} 19. Qc2 {[%clk 0:00:51]}  Bb5 {[%clk 0:02:03]} 20. Rfe1 {[%clk 0:00:49]}  Re8 {[%clk 0:01:59]} 21. c6 {[%clk 0:00:44]}  Nxc6 {[%clk 0:01:53]} 22. e4 {[%clk 0:00:37]}  Ne5 {[%clk 0:01:43]} 23. Nc5 {[%clk 0:00:31]}  fxe4 {[%clk 0:01:39]} 24. fxe4 {[%clk 0:00:31]}  Nfg4 {[%clk 0:01:34]} 25. exd5 {[%clk 0:00:18]}  Nxf2 {[%clk 0:01:32]} 26. Kxf2 {[%clk 0:00:18]}  Ng4+ {[%clk 0:01:32]} 27. Kg1 {[%clk 0:00:19]}  Bd4+ {[%clk 0:01:31]} 28. Kh1 {[%clk 0:00:18]}  Nf2+ {[%clk 0:01:21]} 29. Kg1 {[%clk 0:00:18]}  Nd3+ {[%clk 0:01:16]} 30. Kh1 {[%clk 0:00:18]}  Nxe1 {[%clk 0:01:16]} 31. Qd1 {[%clk 0:00:16]}  Bxc5 {[%clk 0:01:12]} 32. Nf3 {[%clk 0:00:09]}  Nd3 {[%clk 0:01:10]} 33. Rc2 {[%clk 0:00:07]}  Nf2+ {[%clk 0:01:05]} 34. Rxf2 {[%clk 0:00:08]}  Bxf2 {[%clk 0:01:05]} 35. h4 {[%clk 0:00:06]}  Qg4 {[%clk 0:01:03]} 36. d6 {[%clk 0:00:06]}  Re1+ {[%clk 0:00:59]} 0-1


[Site "https://www.chess.com"]

[Event "Titled Tuesday Blitz April 12 Late 2022"]
[White "Friedel, Tom"]
[Black "Tanenbaum, Zachary"]
[WhiteFideId "2002108"]
[BlackFideId "2060850"]
[WhiteElo "2398"]
[BlackElo "2168"]
[Result "0-1"]
[Round "05"]
[TimeControl "180+1"]
[Date "2022.04.13"]
[WhiteClock "0:00:03"]
[BlackClock "0:00:04"]

1. e4 {[%clk 0:02:59]}  e5 {[%clk 0:01:43]} 2. Nf3 {[%clk 0:02:58]}  Nc6 {[%clk 0:01:43]} 3. Bc4 {[%clk 0:02:58]}  Nf6 {[%clk 0:01:42]} 4. d3 {[%clk 0:02:57]}  Be7 {[%clk 0:01:43]} 5. O-O {[%clk 0:02:56]}  O-O {[%clk 0:01:42]} 6. Nc3 {[%clk 0:02:55]}  d6 {[%clk 0:01:43]} 7. a4 {[%clk 0:02:55]}  Be6 {[%clk 0:01:42]} 8. Bxe6 {[%clk 0:02:51]}  fxe6 {[%clk 0:01:43]} 9. d4 {[%clk 0:02:51]}  Qe8 {[%clk 0:01:24]} 10. Qd3 {[%clk 0:02:21]}  Qg6 {[%clk 0:01:11]} 11. Kh1 {[%clk 0:02:10]}  exd4 {[%clk 0:00:25]} 12. Nxd4 {[%clk 0:02:09]}  Ng4 {[%clk 0:00:25]} 13. Nxc6 {[%clk 0:01:56]}  bxc6 {[%clk 0:00:26]} 14. f3 {[%clk 0:01:56]}  Ne5 {[%clk 0:00:22]} 15. Qe2 {[%clk 0:01:49]}  Rf7 {[%clk 0:00:20]} 16. b3 {[%clk 0:01:47]}  Raf8 {[%clk 0:00:20]} 17. Be3 {[%clk 0:01:43]}  Qh5 {[%clk 0:00:19]} 18. a5 {[%clk 0:01:32]}  Ng6 {[%clk 0:00:19]} 19. a6 {[%clk 0:01:30]}  Bf6 {[%clk 0:00:18]} 20. Qd2 {[%clk 0:01:25]}  Be5 {[%clk 0:00:18]} 21. Bg1 {[%clk 0:01:23]}  Bf4 {[%clk 0:00:16]} 22. Qe1 {[%clk 0:01:13]}  Ne5 {[%clk 0:00:15]} 23. Ra5 {[%clk 0:01:02]}  c5 {[%clk 0:00:15]} 24. Rb5 {[%clk 0:01:01]}  c6 {[%clk 0:00:13]} 25. Rb7 {[%clk 0:01:01]}  Rxb7 {[%clk 0:00:13]} 26. axb7 {[%clk 0:01:00]}  Rb8 {[%clk 0:00:14]} 27. Qd1 {[%clk 0:00:50]}  Ng6 {[%clk 0:00:08]} 28. Ne2 {[%clk 0:00:36]}  Be5 {[%clk 0:00:07]} 29. f4 {[%clk 0:00:35]}  Nxf4 {[%clk 0:00:07]} 30. Nxf4 {[%clk 0:00:35]}  Qxd1 {[%clk 0:00:08]} 31. Rxd1 {[%clk 0:00:34]}  Bxf4 {[%clk 0:00:09]} 32. g3 {[%clk 0:00:07]}  Be5 {[%clk 0:00:09]} 33. Be3 {[%clk 0:00:02]}  Rxb7 {[%clk 0:00:10]} 34. Bf4 {[%clk 0:00:03]}  Bxf4 {[%clk 0:00:08]} 35. gxf4 {[%clk 0:00:03]}  Rd7 {[%clk 0:00:09]} 36. e5 {[%clk 0:00:03]}  d5 {[%clk 0:00:09]} 37. Ra1 {[%clk 0:00:04]}  g6 {[%clk 0:00:09]} 38. Ra6 {[%clk 0:00:04]}  Rc7 {[%clk 0:00:09]} 39. c4 {[%clk 0:00:04]}  Kf7 {[%clk 0:00:09]} 40. Kg2 {[%clk 0:00:04]}  Ke7 {[%clk 0:00:09]} 41. Kf3 {[%clk 0:00:05]}  Rb7 {[%clk 0:00:07]} 42. Ra3 {[%clk 0:00:02]}  Kd7 {[%clk 0:00:06]} 43. Kg4 {[%clk 0:00:02]}  h6 {[%clk 0:00:06]} 44. h4 {[%clk 0:00:02]}  Kc7 {[%clk 0:00:06]} 45. h5 {[%clk 0:00:02]}  gxh5+ {[%clk 0:00:06]} 46. Kxh5 {[%clk 0:00:02]}  Kb8 {[%clk 0:00:07]} 47. Kxh6 {[%clk 0:00:03]}  Rf7 {[%clk 0:00:06]} 48. Kg5 {[%clk 0:00:03]}  d4 {[%clk 0:00:05]} 49. Ra2 {[%clk 0:00:02]}  Rb7 {[%clk 0:00:05]} 50. Rb2 {[%clk 0:00:01]}  a5 {[%clk 0:00:05]} 51. f5 {[%clk 0:00:02]}  exf5 {[%clk 0:00:05]} 52. Kxf5 {[%clk 0:00:02]}  a4 {[%clk 0:00:05]} 53. e6 {[%clk 0:00:02]}  axb3 {[%clk 0:00:05]} 54. Kf6 {[%clk 0:00:03]}  Kc8 {[%clk 0:00:04]} 0-1


[Site "https://www.chess.com"]

[Event "Titled Tuesday Blitz April 12 Late 2022"]
[White "Hardaway, Brewington"]
[Black "Romanchuk, Viktor"]
[WhiteFideId "30941849"]
[BlackFideId "14109271"]
[WhiteElo "1768"]
[BlackElo "2242"]
[Result "1-0"]
[Round "05"]
[TimeControl "180+1"]
[Date "2022.04.13"]
[WhiteClock "0:00:06"]
[BlackClock "0:00:01"]

1. Nf3 {[%clk 0:03:00]}  d5 {[%clk 0:02:53]} 2. e3 {[%clk 0:03:00]}  c6 {[%clk 0:02:53]} 3. b3 {[%clk 0:02:59]}  Bf5 {[%clk 0:02:51]} 4. Bb2 {[%clk 0:03:00]}  e6 {[%clk 0:02:51]} 5. c4 {[%clk 0:02:56]}  Nd7 {[%clk 0:02:51]} 6. Nc3 {[%clk 0:02:55]}  h6 {[%clk 0:02:48]} 7. d4 {[%clk 0:02:54]}  Ngf6 {[%clk 0:02:48]} 8. Bd3 {[%clk 0:02:52]}  Bxd3 {[%clk 0:02:49]} 9. Qxd3 {[%clk 0:02:53]}  Bb4 {[%clk 0:02:47]} 10. O-O {[%clk 0:02:51]}  Qe7 {[%clk 0:02:47]} 11. Nd2 {[%clk 0:02:51]}  Ba3 {[%clk 0:02:44]} 12. Bxa3 {[%clk 0:02:49]}  Qxa3 {[%clk 0:02:44]} 13. e4 {[%clk 0:02:43]}  dxe4 {[%clk 0:02:41]} 14. Ndxe4 {[%clk 0:02:42]}  O-O {[%clk 0:02:39]} 15. f4 {[%clk 0:02:41]}  Rad8 {[%clk 0:02:36]} 16. f5 {[%clk 0:02:39]}  Nxe4 {[%clk 0:01:33]} 17. Nxe4 {[%clk 0:02:33]}  exf5 {[%clk 0:01:19]} 18. Rxf5 {[%clk 0:02:32]}  f6 {[%clk 0:01:16]} 19. Qg3 {[%clk 0:02:25]}  Qb2 {[%clk 0:01:01]} 20. Rd1 {[%clk 0:02:19]}  Kh8 {[%clk 0:00:55]} 21. Rd2 {[%clk 0:02:13]}  Qb1+ {[%clk 0:00:49]} 22. Rf1 {[%clk 0:02:06]}  Qxe4 {[%clk 0:00:49]} 23. Re1 {[%clk 0:02:04]}  Qf5 {[%clk 0:00:41]} 24. Qc7 {[%clk 0:02:01]}  Rfe8 {[%clk 0:00:26]} 25. Rf1 {[%clk 0:02:00]}  Qg5 {[%clk 0:00:26]} 26. Rdf2 {[%clk 0:01:58]}  Nf8 {[%clk 0:00:19]} 27. Qxb7 {[%clk 0:01:55]}  Qe3 {[%clk 0:00:19]} 28. Qxa7 {[%clk 0:01:53]}  Qxd4 {[%clk 0:00:19]} 29. Qc7 {[%clk 0:01:50]}  c5 {[%clk 0:00:18]} 30. h3 {[%clk 0:01:45]}  Ne6 {[%clk 0:00:15]} 31. Qa5 {[%clk 0:01:28]}  Ng5 {[%clk 0:00:16]} 32. Kh2 {[%clk 0:01:15]}  Qd6+ {[%clk 0:00:15]} 33. Kg1 {[%clk 0:01:08]}  Ne4 {[%clk 0:00:14]} 34. Rf5 {[%clk 0:00:53]}  Qd4+ {[%clk 0:00:07]} 35. Kh2 {[%clk 0:00:52]}  Qd6+ {[%clk 0:00:06]} 36. Kg1 {[%clk 0:00:52]}  Ng3 {[%clk 0:00:04]} 37. Rd5 {[%clk 0:00:51]}  Qe7 {[%clk 0:00:04]} 38. Rfd1 {[%clk 0:00:28]}  Ne2+ {[%clk 0:00:04]} 39. Kh1 {[%clk 0:00:22]}  Nd4 {[%clk 0:00:05]} 40. Rxd8 {[%clk 0:00:21]}  Rxd8 {[%clk 0:00:06]} 41. Qe1 {[%clk 0:00:21]}  Re8 {[%clk 0:00:06]} 42. Qxe7 {[%clk 0:00:21]}  Rxe7 {[%clk 0:00:06]} 43. b4 {[%clk 0:00:22]}  Ne6 {[%clk 0:00:06]} 44. b5 {[%clk 0:00:22]}  Nd4 {[%clk 0:00:06]} 45. a4 {[%clk 0:00:21]}  Ra7 {[%clk 0:00:06]} 46. Ra1 {[%clk 0:00:21]}  Ra5 {[%clk 0:00:06]} 47. Ra3 {[%clk 0:00:20]}  Kg8 {[%clk 0:00:07]} 48. b6 {[%clk 0:00:20]}  Kf7 {[%clk 0:00:07]} 49. b7 {[%clk 0:00:19]}  Nc6 {[%clk 0:00:07]} 50. Rb3 {[%clk 0:00:16]}  Nb8 {[%clk 0:00:08]} 51. Rb5 {[%clk 0:00:16]}  Rxa4 {[%clk 0:00:08]} 52. Rxc5 {[%clk 0:00:16]}  Rb4 {[%clk 0:00:08]} 53. Rc7+ {[%clk 0:00:16]}  Ke6 {[%clk 0:00:09]} 54. c5 {[%clk 0:00:17]}  g5 {[%clk 0:00:08]} 55. Kh2 {[%clk 0:00:16]}  Kd5 {[%clk 0:00:08]} 56. Kg3 {[%clk 0:00:16]}  Nc6 {[%clk 0:00:08]} 57. Rf7 {[%clk 0:00:13]}  Kxc5 {[%clk 0:00:08]} 58. Rxf6 {[%clk 0:00:13]}  Rxb7 {[%clk 0:00:08]} 59. Rxh6 {[%clk 0:00:14]}  Ne5 {[%clk 0:00:09]} 60. Rh5 {[%clk 0:00:14]}  Rg7 {[%clk 0:00:08]} 61. Rh6 {[%clk 0:00:12]}  Kd5 {[%clk 0:00:08]} 62. Ra6 {[%clk 0:00:12]}  Ke4 {[%clk 0:00:08]} 63. Ra5 {[%clk 0:00:12]}  Kf5 {[%clk 0:00:09]} 64. Kf2 {[%clk 0:00:12]}  Rd7 {[%clk 0:00:09]} 65. g4+ {[%clk 0:00:12]}  Ke6 {[%clk 0:00:08]} 66. Ra6+ {[%clk 0:00:12]}  Rd6 {[%clk 0:00:09]} 67. Ra8 {[%clk 0:00:12]}  Rd3 {[%clk 0:00:09]} 68. Kg2 {[%clk 0:00:12]}  Ng6 {[%clk 0:00:07]} 69. Ra6+ {[%clk 0:00:11]}  Rd6 {[%clk 0:00:06]} 70. Ra5 {[%clk 0:00:10]}  Nf4+ {[%clk 0:00:07]} 71. Kf3 {[%clk 0:00:06]}  Kf6 {[%clk 0:00:07]} 72. Rf5+ {[%clk 0:00:06]}  Kg6 {[%clk 0:00:07]} 73. h4 {[%clk 0:00:06]}  Ne6 {[%clk 0:00:04]} 74. h5+ {[%clk 0:00:06]}  Kg7 {[%clk 0:00:04]} 75. Ke4 {[%clk 0:00:06]}  Rc6 {[%clk 0:00:04]} 76. Kd5 {[%clk 0:00:06]}  Rb6 {[%clk 0:00:04]} 77. Ke5 {[%clk 0:00:07]}  Nc5 {[%clk 0:00:01]} 78. Rxg5+ {[%clk 0:00:07]}  Kh6 {[%clk 0:00:01]} 79. Rf5 {[%clk 0:00:07]}  Nd7+ {[%clk 0:00:01]} 80. Kd5 {[%clk 0:00:08]}  Nf6+ {[%clk 0:00:01]} 81. Kc5 {[%clk 0:00:07]}  Nxg4 {[%clk 0:00:02]} 82. Kxb6 {[%clk 0:00:07]}  Ne3 {[%clk 0:00:02]} 83. Rb5 {[%clk 0:00:06]}  Nc4+ {[%clk 0:00:01]} 84. Kc7 {[%clk 0:00:06]} 1-0


[Site "https://www.chess.com"]

[Event "Titled Tuesday Blitz April 12 Late 2022"]
[White "Holt, Conrad"]
[Black "Najer, Evgeniy"]
[WhiteFideId "2034387"]
[BlackFideId "4118987"]
[WhiteElo "2586"]
[BlackElo "2562"]
[Result "1-0"]
[Round "05"]
[TimeControl "180+1"]
[Date "2022.04.12"]
[WhiteClock "0:00:58"]
[BlackClock "0:00:27"]

1. d4 {[%clk 0:02:24]}  Nf6 {[%clk 0:02:57]} 2. c4 {[%clk 0:02:22]}  e6 {[%clk 0:02:56]} 3. Nc3 {[%clk 0:02:22]}  Bb4 {[%clk 0:02:55]} 4. Qc2 {[%clk 0:02:22]}  d5 {[%clk 0:02:54]} 5. cxd5 {[%clk 0:02:22]}  Qxd5 {[%clk 0:02:54]} 6. e3 {[%clk 0:02:14]}  c5 {[%clk 0:02:49]} 7. Nf3 {[%clk 0:02:14]}  cxd4 {[%clk 0:02:40]} 8. exd4 {[%clk 0:02:09]}  Nc6 {[%clk 0:02:37]} 9. Be3 {[%clk 0:02:04]}  Qa5 {[%clk 0:02:03]} 10. Bd3 {[%clk 0:02:00]}  Nd5 {[%clk 0:02:03]} 11. O-O {[%clk 0:01:56]}  Bxc3 {[%clk 0:02:02]} 12. bxc3 {[%clk 0:01:56]}  Qxc3 {[%clk 0:02:03]} 13. Bxh7 {[%clk 0:01:41]}  g6 {[%clk 0:01:12]} 14. Bxg6 {[%clk 0:01:39]}  fxg6 {[%clk 0:01:12]} 15. Qxg6+ {[%clk 0:01:39]}  Kd8 {[%clk 0:01:13]} 16. Rac1 {[%clk 0:01:22]}  Qa3 {[%clk 0:01:12]} 17. Ne5 {[%clk 0:01:05]}  Bd7 {[%clk 0:00:27]} 18. Qg7 {[%clk 0:00:58]} 1-0


[Site "https://www.chess.com"]

[Event "Titled Tuesday Blitz April 12 Late 2022"]
[White "Ibarra Jerez, Jose Carlos"]
[Black "Molenda, Marcin"]
[WhiteFideId "2226332"]
[BlackFideId "1173065"]
[WhiteElo "2626"]
[BlackElo "2067"]
[Result "0-1"]
[Round "05"]
[TimeControl "180+1"]
[Date "2022.04.12"]
[WhiteClock "0:00:13"]
[BlackClock "0:00:19"]

1. Nf3 {[%clk 0:03:00]}  Nf6 {[%clk 0:02:56]} 2. e3 {[%clk 0:03:00]}  d5 {[%clk 0:02:56]} 3. b3 {[%clk 0:03:01]}  g6 {[%clk 0:02:55]} 4. Bb2 {[%clk 0:03:01]}  Bg7 {[%clk 0:02:55]} 5. c4 {[%clk 0:03:01]}  c6 {[%clk 0:02:46]} 6. Be2 {[%clk 0:03:00]}  O-O {[%clk 0:02:46]} 7. O-O {[%clk 0:03:00]}  a5 {[%clk 0:02:45]} 8. Nc3 {[%clk 0:02:56]}  Na6 {[%clk 0:02:44]} 9. d4 {[%clk 0:02:42]}  Bf5 {[%clk 0:02:36]} 10. cxd5 {[%clk 0:02:38]}  cxd5 {[%clk 0:02:36]} 11. Rc1 {[%clk 0:02:36]}  Ne4 {[%clk 0:02:25]} 12. Na4 {[%clk 0:02:26]}  Nb4 {[%clk 0:02:21]} 13. a3 {[%clk 0:02:21]}  Nc6 {[%clk 0:02:21]} 14. Bb5 {[%clk 0:02:18]}  Rc8 {[%clk 0:02:20]} 15. Qe2 {[%clk 0:02:18]}  Qd6 {[%clk 0:02:18]} 16. h3 {[%clk 0:02:09]}  Rc7 {[%clk 0:02:08]} 17. Rfd1 {[%clk 0:02:08]}  h6 {[%clk 0:01:51]} 18. Qe1 {[%clk 0:01:42]}  g5 {[%clk 0:01:33]} 19. Bxc6 {[%clk 0:01:23]}  Rxc6 {[%clk 0:01:31]} 20. Qxa5 {[%clk 0:01:23]}  g4 {[%clk 0:01:29]} 21. Rxc6 {[%clk 0:01:13]}  Qxc6 {[%clk 0:01:18]} 22. Rc1 {[%clk 0:01:06]}  Qf6 {[%clk 0:01:10]} 23. Ne5 {[%clk 0:00:47]}  gxh3 {[%clk 0:01:10]} 24. f3 {[%clk 0:00:47]}  Qg5 {[%clk 0:01:07]} 25. Rc2 {[%clk 0:00:22]}  Qxe3+ {[%clk 0:01:04]} 26. Kh2 {[%clk 0:00:23]}  hxg2 {[%clk 0:00:56]} 27. Rxg2 {[%clk 0:00:21]}  Ng5 {[%clk 0:00:57]} 28. Qc3 {[%clk 0:00:18]}  Qf4+ {[%clk 0:00:49]} 29. Kg1 {[%clk 0:00:18]}  Nxf3+ {[%clk 0:00:48]} 30. Nxf3 {[%clk 0:00:17]}  Rc8 {[%clk 0:00:44]} 31. Qd2 {[%clk 0:00:16]}  Qxf3 {[%clk 0:00:41]} 32. Nc3 {[%clk 0:00:15]}  Bd3 {[%clk 0:00:32]} 33. Qe1 {[%clk 0:00:15]}  Kh8 {[%clk 0:00:25]} 34. Rxg7 {[%clk 0:00:14]}  Kxg7 {[%clk 0:00:25]} 35. Qe5+ {[%clk 0:00:14]}  Kg8 {[%clk 0:00:20]} 36. Nxd5 {[%clk 0:00:13]}  Qf1+ {[%clk 0:00:19]} 37. Kh2 {[%clk 0:00:13]}  Rc2+ {[%clk 0:00:19]} 38. Kg3 {[%clk 0:00:14]}  Rg2+ {[%clk 0:00:19]} 39. Kh4 {[%clk 0:00:13]}  Qh1+ {[%clk 0:00:19]} 0-1


[Site "https://www.chess.com"]